Cogmind - Beta 13 @@@ ROGUE MODE // 2024.04.23 @ 16:26:45 Player: NikedNOGsing_in_can't Result: Destroyed by S-43 Plague with Heavy Machine Gun Performance ------------- Evolutions (9) 4500 Regions Visited (14) 2800 Robots Destroyed (95) 475 Value Destroyed (3119) 3119 Prototype IDs (49) 980 Alien Tech Used (0) 0 Bonus (440) 440 TOTAL SCORE: 12314 Bonus ------- High Alert Combat Kills 40 Follower Combat Kills 304 Aligned with FarCom 300 Friendly Fire -204 Cogmind --------- Core Integrity 0/1600 Matter 182/300 Energy 42/100 System Corruption 8% Temperature Cool (2) Movement Core (50) Location -1/Command Parts ------- > --- POWER (2) -------- (None) > --- PROPULSION (10) -- Improved Gyrokinetic Inverter Improved Gyrokinetic Inverter Improved Gyrokinetic Inverter > --- UTILITY (11) ----- Advanced System Shield > --- WEAPON (2) ------- (None) > --- INVENTORY (5) ---- Experimental ECM Suite Reaction Control System Peak State ------------ > --- POWER ------------ Graviton Reactor Quantum Reactor > --- PROPULSION ------- Improved Antigrav System Impulse Thruster Impulse Thruster Field Propulsion Array Q-thruster Impulse Thruster Array Impulse Thruster Array > --- UTILITY ---------- Coolant Network Medium Storage Unit Enhanced Optical Array Advanced Targeting Computer Advanced Transmission Jammer Experimental ECM Suite Cloaking Device Improved Hacking Suite Improved Hacking Suite Advanced System Shield > --- WEAPON ----------- Matter Neutralizer Molecular Scythe > --- INVENTORY -------- Micro Antimatter Reactor Quantum Reactor Improved Quantum Reactor Advanced Coolant Injector Advanced Weight Redist. System Advanced Phase Shifter Advanced Component Analysis Suite Enhanced Quantum Rifle Advanced Micro-nuke Launcher Advanced Datajack [Rating: 178] Favorites ----------- Power Ion Engine Engine Ion Engine Power Core Micro Fission Core Reactor Quantum Reactor Propulsion Impulse Thruster Treads Light Treads Leg Biometal Leg Wheel Wheel Hover Unit Improved Antigrav System Flight Unit Impulse Thruster Utility Enhanced Optical Array Device Experimental ECM Suite Storage Huge Storage Unit Processor Enhanced Optical Array Hackware Improved Hacking Suite Protection Improved Light Armor Plating Weapon Cooled Plasma Cannon Energy Cannon Cooled Plasma Cannon Ballistic Gun Light Assault Rifle Ballistic Cannon Flak Cannon Launcher Advanced Micro-nuke Launcher Special Weapon Mining Laser Slashing Weapon Molecular Scythe Special Melee Weapon Advanced Datajack Build | -11 -10 -10 -10 -9 -8 -7 -6 -5 -5 -4 -3 -2 -1 -1 ------- Run | Yrd Mat Min Exi Min Mat Fac Fac Fac Ext Fac Res Res Acc Com Slots Evolved 18 | . . . . . 4 2 2 2 . 2 2 2 2 . Power 1 | . . . . . . . . . . 1 . . . . Propulsion 8 | . . . . . 2 1 . 1 . 1 1 1 1 . Utility 9 | . . . . . 2 1 2 1 . . 1 1 1 . Weapon . | . . . . . . . . . . . . . . . Parts Attached 233 | 9 9 1 5 . 39 4 7 5 5 26 23 30 7 63 Power 35 | 2 3 . . . 5 . 1 1 . 4 3 3 3 10 Engine 12 | 2 3 . . . 1 . 1 . . 1 . . . 4 Core 5 | . . . . . 4 . . 1 . . . . . . Reactor 18 | . . . . . . . . . . 3 3 3 3 6 Propulsion 51 | 2 2 . 4 . 11 . 1 1 1 5 7 1 1 15 Treads 10 | 2 . . . . 7 . . . . . . . . 1 Leg 4 | . . . 2 . . . . . . . . . . 2 Wheel 6 | . 2 . 2 . 2 . . . . . . . . . Hover 11 | . . . . . . . . . . . . . 1 10 Flight 20 | . . . . . 2 . 1 1 1 5 7 1 . 2 Utility 77 | 3 2 . 1 . 10 3 4 1 2 11 9 13 2 16 Device 52 | 2 1 . 1 . 4 2 3 1 1 10 7 9 2 9 Storage 5 | 1 1 . . . 1 . . . . 1 . 1 . . Processor 6 | . . . . . 1 1 1 . . . . 1 . 2 Hackware 8 | . . . . . 1 . . . 1 . 1 2 . 3 Protection 6 | . . . . . 3 . . . . . 1 . . 2 Artifact . | . . . . . . . . . . . . . . . Weapon 70 | 2 2 1 . . 13 1 1 2 2 6 4 13 1 22 Energy Gun . | . . . . . . . . . . . . . . . Energy Cannon 17 | . . . . . . . 1 . 2 1 2 6 1 4 Ballistic Gun 26 | 2 1 1 . . 10 . . 1 . 3 . . . 8 Ballistic Cannon 1 | . . . . . . 1 . . . . . . . . Launcher 9 | . . . . . . . . . . 1 1 4 . 3 Special Weapon 7 | . 1 . . . 3 . . 1 . . . . . 2 Impact Weapon . | . . . . . . . . . . . . . . . Slashing Weapon 9 | . . . . . . . . . . 1 1 3 . 4 Piercing Weapon . | . . . . . . . . . . . . . . . Special Melee Weapon 1 | . . . . . . . . . . . . . . 1 Unidentified Prototypes 18 | . . . 2 . . . . . . 3 5 4 1 3 Corrupted Parts 1 | . . . . . . . . . . . . . . 1 System Corruption 1 | . . . . . . . . . . . . . . 1 Parts Lost 67 | . 1 . . . 12 . . . . . . 3 7 44 Power 10 | . 1 . . . 1 . . . . . . . 2 6 Propulsion 21 | . . . . . 6 . . . . . . . 4 11 Utility 21 | . . . . . 1 . . . . . . 2 1 17 Weapon 15 | . . . . . 4 . . . . . . 1 . 10 Highest Loss Streak 22 | . 1 . . . 10 . . . . . . 1 5 22 To Critical Strikes 3 | . . . . . . . . . . . . . . 3 Average Slot Usage (%) 84 | . 99 100 91 85 92 58 79 78 81 83 84 82 79 61 Engine 4 | . 13 14 14 14 2 7 6 2 . 3 . . . 1 Core 1 | . . . . . 6 . . 2 5 . . . . . Reactor 3 | . . . . . . . . . . 5 8 8 7 4 Treads 4 | . 6 . . . 25 . . . . . . . . 1 Wheel 6 | . 21 28 27 28 6 . . . . . . . . . Hover 1 | . . . . . . . . . . . . . 3 8 Flight 11 | . . . . . . 7 12 17 17 21 22 26 22 1 Device 14 | . 14 14 6 . 7 4 19 19 22 15 22 21 15 8 Storage 5 | . 14 14 14 14 9 7 6 5 5 4 . . 2 . Processor 5 | . . . . . . 8 13 11 11 10 9 5 8 6 Hackware 7 | . . . . . 3 7 6 5 5 10 9 12 12 17 Protection 1 | . . . . . 12 . . . . . . . . 1 Energy Cannon 2 | . . . . . . . 2 3 4 4 4 3 3 . Ballistic Gun 9 | . 26 26 28 28 17 7 6 5 5 4 . . . 2 Slashing Weapon 1 | . . . . . . . . . . . 3 3 3 2 Naked Turns . | . . . . . . . . . . . . . . . Heaviest Build 99 | 13 89 89 89 88 99 39 46 46 43 64 57 64 66 65 Greatest Support 84 | 40 40 20 60 20 82 50 55 61 62 68 69 78 69 84 Greatest Overweight (x) 9 | . 8 4 4 4 9 . . . . 1 . . 1 7 Average Overweight (x) . | . 2 4 3 4 2 . . . . . . . . . Largest Inventory Capacity 25 | 8 25 25 25 25 25 15 15 15 15 15 5 10 10 5 Average Capacity 13 | 7 18 25 25 25 24 15 15 15 15 12 5 5 8 5 Most Carried 25 | 6 11 14 20 20 25 15 15 15 15 15 5 9 10 5 Average Carried 11 | 2 9 12 16 20 22 14 14 14 14 12 4 4 8 4 Final Capacity 25 | 8 25 25 25 25 15 15 15 15 15 5 5 10 5 5 Final Carried 20 | 5 11 14 20 20 15 15 15 15 15 5 5 9 5 2 Class Distribution -------------------- 28% | Mutant 17% | Hacker-Sprinter 12% | Scavenger-Mutant 11% | Hacker-Ninja 9% | Scout 6% | Hacker-Scout 4% | Hacker-Mutant 3% | Commander-Scout 3% | Wizard-Mutant Dominant Class ---------------- Mutant | -10/Materials Mutant | -10/Mines Mutant | -10/Exiles Mutant | -9/Mines Scavenger-Mutant | -8/Materials Scavenger-Mutant | -7/Factory Scout | -6/Factory Scout | -5/Factory Scout | -5/Extension Hacker-Scout | -4/Factory Hacker-Ninja | -3/Research Hacker-Sprinter | -2/Research Hacker-Sprinter | -1/Access Hacker-Mutant | -1/Command Resources | -11 -10 -10 -10 -9 -8 -7 -6 -5 -5 -4 -3 -2 -1 -1 ----------- Run | Yrd Mat Min Exi Min Mat Fac Fac Fac Ext Fac Res Res Acc Com Matter Collected 4249 | 304 485 161 50 . 1015 159 . . 250 343 412 419 110 541 Remotely 35 | 35 . . . . . . . . . . . . . . Salvage Created 4921 | 106 458 86 . . 1559 . 35 . 333 255 412 259 160 1258 Parts 241 | 6 34 5 . . 80 . . . 15 18 18 9 2 54 Haulers Intercepted 5 | . 2 . . . 1 . 1 . . . 1 . . . Recyclers Shooed 5 | . 2 . . . . . . . . 1 1 1 . . Parts Field Recycled . | . . . . . . . . . . . . . . . Retrieved Matter . | . . . . . . . . . . . . . . . Parts Self-Destructed . | . . . . . . . . . . . . . . . Prevented . | . . . . . . . . . . . . . . . Kills | -11 -10 -10 -10 -9 -8 -7 -6 -5 -5 -4 -3 -2 -1 -1 ------- Run | Yrd Mat Min Exi Min Mat Fac Fac Fac Ext Fac Res Res Acc Com Combat Hostiles Destroyed 55 | . 10 2 . . 27 . . . 5 2 . 4 . 5 Melee 1 | . . . . . . . . . . . . . . 1 Guns 43 | . 10 2 . . 27 . . . 2 . . . . 2 Cannons 4 | . . . . . . . . . 3 . . . . 1 AOE 7 | . . . . . . . . . . 2 . 4 . 1 Classes Destroyed 16 | 2 5 . . . 5 . . . 2 1 . 1 . . Worker 7 | . . . . . 2 . . . . 1 2 1 . 1 Builder 1 | . . . . . . . . . . 1 . . . . Tunneler 3 | 2 . 1 . . . . . . . . . . . . Hauler 5 | . 2 . . . 1 . 1 . . . 1 . . . Recycler 9 | 1 . . . . 2 . . . . 1 2 1 1 1 Mechanic 1 | . 1 . . . . . . . . . . . . . Operator 6 | . . . . . 3 . . . . . 1 1 . 1 Watcher 7 | . 3 . . . 2 . . . . 1 . . . 1 Swarmer 11 | . 5 . . . 6 . . . . . . . . . Cutter 2 | . . . . . . . . . . . . 2 . . Grunt 25 | . 5 2 . . 15 . . . 3 . . . . . Sentry 4 | . . . . . 3 . . . 1 . . . . . Specialist 2 | . . . . . 2 . . . . . . . . . Hunter 3 | . . . . . 1 . . . . . . . . 2 Programmer 8 | . . . . . . . . . 1 2 . 2 . 3 Butcher 1 | . . . . . . . . . 1 . . . . . Best Kill Streak 7 | 3 5 2 . . 7 . 1 . 1 2 2 2 1 3 Combat Bots Only 7 | . 3 2 . . 7 . . . 1 2 . 2 . 2 Max Kills in Single Turn 2 | 1 1 1 . . 2 . 1 . 1 2 1 1 1 1 Gunslinging . | . . . . . . . . . . . . . . . Exploded 2 | . . . . . . . . . . 2 . 1 . 1 Melee 1 | . . . . . . . . . . . . . . 1 Uniques/NPCs Destroyed . | . . . . . . . . . . . . . . . Combat | -11 -10 -10 -10 -9 -8 -7 -6 -5 -5 -4 -3 -2 -1 -1 -------- Run | Yrd Mat Min Exi Min Mat Fac Fac Fac Ext Fac Res Res Acc Com Hostile Shots Fired 930 | . 51 22 . . 194 9 . . 62 36 8 76 78 394 Missed 343 | . 14 6 . . 43 4 . . 30 14 7 40 44 141 Damage Taken 11577 | . 359 208 . . 2064 31 110 . 725 407 23 1177 809 5664 Core 2218 | . 141 29 . . 281 . . . 56 41 . 61 122 1487 Absorbed by Shields 127 | . . . . . . . . . 33 82 . 12 . . Regen/Repaired (Parts) 83 | . . . . . . . . . 83 . . . . . Core Remaining (%) 85 | 100 . . . 32 48 100 100 . 94 96 100 95 . . Volleys Fired 458 | 7 68 16 . . 112 . 11 3 25 74 14 51 44 33 Largest 2 | 2 2 1 . . 2 . 2 1 2 2 1 1 1 2 Hottest 148 | 40 100 100 . . 100 . 85 20 65 105 105 35 105 148 Shots Fired 716 | 14 135 16 . . 220 . 19 3 48 102 14 52 44 49 Gun 478 | 14 134 15 . . 218 . 8 . 24 32 . . . 33 Cannon 214 | . . . . . . . 11 . 24 67 14 43 44 11 Launcher 15 | . . . . . . . . . . 3 . 9 . 3 Special 9 | . 1 1 . . 2 . . 3 . . . . . 2 Kinetic 486 | 14 134 15 . . 218 . 16 . 24 32 . . . 33 Thermal 213 | . 1 1 . . 2 . 3 3 24 67 14 43 44 11 Explosive 15 | . . . . . . . . . . 3 . 9 . 3 Electromagnetic . | . . . . . . . . . . . . . . . Robot Hit Streak 15 | 7 12 9 . . 15 . 10 . 3 9 1 8 . 8 Robot Miss Streak 9 | 2 9 1 . . 5 . 4 . 3 3 3 3 . 5 Penetration Max 1 | . . . . . 1 . . . . . . . . . Secondary Targets 8 | . 2 . . . 5 . . . . . . . . 1 Max Gunslinging Chain 1 | . 1 . . . 1 . . . . . . . . 1 Shots Hit Robots 391 | 9 81 13 . . 141 . 13 . 24 37 12 15 1 45 Core Hits 188 | 4 36 6 . . 64 . 7 . 13 16 4 16 1 21 Critical Kills 4 | . 1 . . . 3 . . . . . . . . . Critical Parts Destroyed 2 | . 1 . . . 1 . . . . . . . . . Critical Strikes 7 | . 2 . . . 4 . . . . . 1 . . . Destroy 6 | . 2 . . . 4 . . . . . . . . . Sever 1 | . . . . . . . . . . . 1 . . . Melee Attacks 129 | . . . . . . . . . . 1 35 42 23 28 Impact . | . . . . . . . . . . . . . . . Slashing 129 | . . . . . . . . . . 1 35 42 23 28 Piercing . | . . . . . . . . . . . . . . . Sneak Attacks 6 | . . . . . . . . . . . 4 . 1 1 Combat Hostiles . | . . . . . . . . . . . . . . . Follow-up Attacks . | . . . . . . . . . . . . . . . Damage Inflicted 11089 | 73 741 129 . . 2839 . 248 . 839 1318 922 1376 110 2494 Guns 5037 | 73 741 105 . . 2835 . 40 . 371 474 . . . 398 Cannons 1863 | . . . . . . . 208 . 468 621 31 358 . 177 Explosions 1495 | . . . . . . . . . . 221 . 1018 . 256 Melee 2662 | . . . . . . . . . . . 891 . 110 1661 Ramming 8 | . . . . . 4 . . . . 2 . . . 2 Kinetic 5245 | 73 741 105 . . 2835 . 248 . 371 474 . . . 398 Thermal 1679 | . . 24 . . . . . . 468 621 31 358 . 177 Explosive 1495 | . . . . . . . . . . 221 . 1018 . 256 Electromagnetic . | . . . . . . . . . . . . . . . Impact . | . . . . . . . . . . . . . . . Slashing 2662 | . . . . . . . . . . . 891 . 110 1661 Piercing . | . . . . . . . . . . . . . . . Highest Corruption 8 | . . . . . . . . . . 6 . 2 5 8 Average Corruption 3 | . . . . . . . . . . 4 . 1 2 3 Corruption Purged 11 | . . . . . . . . . . 6 . . . 5 Corruption Blocked 45 | . . . . . . . . . . . . . . 45 Effects 35 | . . . . . . . . . . 9 . 6 4 16 Message Errors 5 | . . . . . . . . . . 1 . 2 . 2 Matter Fused 13 | . . . . . . . . . . 3 . 2 2 6 Heat Flow Errors 4 | . . . . . . . . . . 1 . . 1 2 Energy Discharges 4 | . . . . . . . . . . 1 . 1 . 2 Data Loss (minor) 3 | . . . . . . . . . . 1 . . 1 1 Data Loss (major) 2 | . . . . . . . . . . 2 . . . . Misfires 1 | . . . . . . . . . . . . 1 . . Alerts 2 | . . . . . . . . . . . . . . 2 Weapon Failures 1 | . . . . . . . . . . . . . . 1 Overload Shots 3 | . . . . . . . . . . 2 1 . . . Overflow Damage 433 | . . . . . . . . . 15 24 193 92 . 109 Projectiles 42 | . . . . . . . . . 15 24 . 3 . . Explosions 140 | . . . . . . . . . . . . 89 . 51 Melee 251 | . . . . . . . . . . . 193 . . 58 Knockbacks . | . . . . . . . . . . . . . . . Impact . | . . . . . . . . . . . . . . . Kinetic . | . . . . . . . . . . . . . . . Secondary . | . . . . . . . . . . . . . . . Self-Inflicted Damage 328 | . . . . . . . . . . 1 . 207 . 120 Shots 6 | . . . . . . . . . . . . 4 . 2 Rammed 4 | . . . . . 2 . . . . 1 . . . 1 Targets Rammed 4 | . . . . . 2 . . . . 1 . . . 1 Kicked . | . . . . . . . . . . . . . . . Crushed . | . . . . . . . . . . . . . . . Highest Temperature 200 | . 20 20 . . 25 . 10 . . 131 95 200 91 170 Average Temperature 41 | . 8 11 . . 6 . 6 . . 19 28 92 91 46 Received Heat Transfer 1624 | . 102 120 . . 855 6 . . 253 . . 9 36 243 Siege Activations . | . . . . . . . . . . . . . . . Robots Corrupted . | . . . . . . . . . . . . . . . Combat Hostiles . | . . . . . . . . . . . . . . . Parts Fried . | . . . . . . . . . . . . . . . Impact Corruptions . | . . . . . . . . . . . . . . . Robots Melted . | . . . . . . . . . . . . . . . Combat Hostiles . | . . . . . . . . . . . . . . . Parts Melted 3 | . . . . . . . . . 2 . . 1 . . Heat Transferred 2448 | . . 50 . . . . . . 700 950 50 550 . 148 Parts Sabotaged . | . . . . . . . . . . . . . . . Parts Stolen . | . . . . . . . . . . . . . . . Parts Stripped . | . . . . . . . . . . . . . . . Power Chain Reactions . | . . . . . . . . . . . . . . . Alert | -11 -10 -10 -10 -9 -8 -7 -6 -5 -5 -4 -3 -2 -1 -1 ------- Run | Yrd Mat Min Exi Min Mat Fac Fac Fac Ext Fac Res Res Acc Com Peak Influence 690 | 15 238 58 . . 256 107 47 37 96 255 195 690 595 328 Initial 413 | . 9 3 . . . 95 7 22 17 29 96 46 413 133 Average 122 | 5 69 4 . . 76 78 16 27 29 104 93 223 440 128 Maximum Alert Level 2 | . 1 . . . 1 . . . . 1 . 2 2 1 Low Security (%) 82 | 100 94 100 . 100 89 100 100 100 100 86 100 59 1 93 Level 1 8 | . 5 . . . 10 . . . . 13 . 22 13 6 Level 2 9 | . . . . . . . . . . . . 18 84 . Level 3 . | . . . . . . . . . . . . . . . Level 4 . | . . . . . . . . . . . . . . . Level 5 . | . . . . . . . . . . . . . . . High Security . | . . . . . . . . . . . . . . . Max Security . | . . . . . . . . . . . . . . . Squads Dispatched 44 | . 2 . . . 10 2 . . 2 9 4 7 6 2 Investigation 8 | . 1 . . . 2 2 . . 1 . . 1 1 . Extermination 13 | . . . . . . . . . . 3 3 3 2 2 Reinforcement 19 | . 1 . . . 6 . . . 1 6 1 2 2 . Assault 1 | . . . . . . . . . . . . . 1 . Garrison 3 | . . . . . 2 . . . . . . 1 . . Intercept . | . . . . . . . . . . . . . . . Searches Triggered 2 | . . . . . . . . . . . . . 2 . Construction Impeded 4 | . . . . . . . . . 1 2 . 1 . . Haulers Reinforced 3 | . . . . . . . . . . 3 . . . . Active Scanning Responses . | . . . . . . . . . . . . . . . Cargo Convoy Interrupts . | . . . . . . . . . . . . . . . Stealth | -11 -10 -10 -10 -9 -8 -7 -6 -5 -5 -4 -3 -2 -1 -1 --------- Run | Yrd Mat Min Exi Min Mat Fac Fac Fac Ext Fac Res Res Acc Com Distress Signals 17 | . 1 . . . 6 . . . 2 . 1 2 1 4 Communications Jammed 20 | . . . . . . . . . . . . 3 14 3 Distress Signals 20 | . . . . . . . . . . . . 3 14 3 Times Spotted 320 | . 25 2 . . 53 1 . 1 21 14 23 42 42 96 Peak Tracking Total 90 | . 6 2 . . 5 1 . 1 5 5 5 9 9 90 Tactical Retreats 40 | . . . . . 2 1 . . 7 2 4 13 7 4 Traps | -11 -10 -10 -10 -9 -8 -7 -6 -5 -5 -4 -3 -2 -1 -1 ------- Run | Yrd Mat Min Exi Min Mat Fac Fac Fac Ext Fac Res Res Acc Com Traps Triggered 17 | . 2 . . . 1 . 1 . 7 1 . 1 2 2 Indirectly . | . . . . . . . . . . . . . . . Trap Hack Attempts . | . . . . . . . . . . . . . . . Triggered . | . . . . . . . . . . . . . . . Disarmed . | . . . . . . . . . . . . . . . Reprogrammed . | . . . . . . . . . . . . . . . Reused . | . . . . . . . . . . . . . . . Traps Extracted . | . . . . . . . . . . . . . . . Installed . | . . . . . . . . . . . . . . . Triggered . | . . . . . . . . . . . . . . . Machines | -11 -10 -10 -10 -9 -8 -7 -6 -5 -5 -4 -3 -2 -1 -1 ---------- Run | Yrd Mat Min Exi Min Mat Fac Fac Fac Ext Fac Res Res Acc Com Machines Disabled 13 | . . . . . 1 . . . 1 . 2 4 2 3 Max in Single Turn 1 | . . . . . 1 . . . 1 . 1 1 1 1 Garrison Access 6 | . . . . . . 1 . . . 2 1 2 . . Phase Generator 1 | . . . . . . . . . . . . . . 1 Machines Repaired . | . . . . . . . . . . . . . . . Machines Dismantled 1 | . . . . . . . . 1 . . . . . . Machines Sabotaged . | . . . . . . . . . . . . . . . Overloaded Fab Kills . | . . . . . . . . . . . . . . . Hacking | -11 -10 -10 -10 -9 -8 -7 -6 -5 -5 -4 -3 -2 -1 -1 --------- Run | Yrd Mat Min Exi Min Mat Fac Fac Fac Ext Fac Res Res Acc Com Machines Accessed 76 | . 8 . 2 1 4 6 2 1 10 11 7 12 6 6 Terminals 54 | . 6 . . 1 3 3 1 1 9 6 6 9 4 5 Fabricators 3 | . . . . . . . . . . 2 . . 1 . Repair Stations 2 | . . . . . . . . . 1 . . 1 . . Recycling Units 6 | . 2 . . . . 1 1 . . 1 . . . 1 Scanalyzers . | . . . . . . . . . . . . . . . Garrison Access 9 | . . . . . 1 2 . . . 2 1 2 1 . Total Hacks 205 | . 23 . 2 3 12 14 4 2 21 25 28 33 12 26 Successful 108 | . 18 . 2 2 5 4 4 . 12 15 17 16 3 10 Failed 95 | . 5 . . 1 7 10 . 2 9 10 10 16 9 16 Catastrophic 13 | . . . . 1 . 3 . . . 2 1 1 2 3 Database Lockouts 2 | . . . . . . . . . . . 1 1 . . Manual 72 | . 15 . 1 2 5 3 3 . 2 6 13 11 1 10 Terminals 158 | . 19 . . 3 9 7 2 2 18 13 27 28 8 22 Fabricators 6 | . . . . . . . . . . 5 . . 1 . Repair Stations 5 | . . . . . . . . . 3 . . 2 . . Recycling Units 13 | . 4 . . . . 1 2 . . 2 . . . 4 Scanalyzers . | . . . . . . . . . . . . . . . Garrison Access 21 | . . . . . 3 6 . . . 5 1 3 3 . Terminal Hacks 62 | . 9 . 2 1 4 1 1 . 9 6 10 9 3 7 Record 19 | . . . 1 . 1 . . . 1 3 5 7 . 1 Prototype ID Bank 2 | . 1 . . . . . . . . . . . . 1 Open Door 10 | . . . . . . . . . 7 . . . 3 . Open DSF 1 | . . . . . . . . . . 1 . . . . Level Access Points 2 | . . . . . . . . . . . . 1 . 1 Branch Access Points 4 | . 1 . . . 1 . . . . 1 1 . . . Emergency Access Points 2 | . 1 . . . . . . . . . . . . 1 Terminal Index 2 | . 1 . . . . . . . . 1 . . . . Alert Level 3 | . . . . . . . . . . . 2 . . 1 Unreport Threat 3 | . 1 . . . 1 1 . . . . . . . . Locate Traps 4 | . . . . . 1 . 1 . 1 . . 1 . . Dispatch Records 1 | . . . . 1 . . . . . . . . . . Patrol Status 1 | . . . . . . . . . . . . . . 1 Recall Investigation 1 | . . . . . . . . . . . 1 . . . Recall Reinforcements 1 | . 1 . . . . . . . . . . . . . Hauler Manifests 2 | . 2 . . . . . . . . . . . . . Zone Layout 2 | . 1 . . . . . . . . . 1 . . . Derelict Proto ID Bank 1 | . . . 1 . . . . . . . . . . . Disengage Seal 1 | . . . . . . . . . . . . . . 1 Fabricator Hacks 3 | . . . . . . . . . . 3 . . . . Network Status 2 | . . . . . . . . . . 2 . . . . Build 1 | . . . . . . . . . . 1 . . . . Repair Station Hacks 2 | . . . . . . . . . 2 . . . . . Scan Component 1 | . . . . . . . . . 1 . . . . . Repair 1 | . . . . . . . . . 1 . . . . . Recycling Unit Hacks 6 | . 3 . . . . . 1 . . 1 . . . 1 Retrieve Components 6 | . 3 . . . . . 1 . . 1 . . . 1 Scanalyzer . | . . . . . . . . . . . . . . . Garrison Access Hacks 6 | . . . . . . 1 . . . 2 1 2 . . Seal Access 6 | . . . . . . 1 . . . 2 1 2 . . Unauthorized Hacks 28 | . 6 . . 1 1 2 2 . 1 3 6 4 . 2 Terminals 27 | . 6 . . 1 1 2 1 . 1 3 6 4 . 2 Assimilate 2 | . . . . . . . . . . . 1 1 . . Botnet 25 | . 6 . . 1 1 2 1 . 1 3 5 3 . 2 Fabricators . | . . . . . . . . . . . . . . . Repair Stations . | . . . . . . . . . . . . . . . Recycling Units 1 | . . . . . . . 1 . . . . . . . Mask 1 | . . . . . . . 1 . . . . . . . Scanalyzers . | . . . . . . . . . . . . . . . Garrison Access . | . . . . . . . . . . . . . . . Data Cores Recovered . | . . . . . . . . . . . . . . . Used . | . . . . . . . . . . . . . . . Hacking Detections 53 | . 6 . . 1 3 6 1 1 5 7 6 10 3 4 Full Trace Events 6 | . . . . . 2 2 . . . . . 1 1 . Feedback Events . | . . . . . . . . . . . . . . . Feedback Blocked . | . . . . . . . . . . . . . . . Robot Schematics Acquired . | . . . . . . . . . . . . . . . Robots Built . | . . . . . . . . . . . . . . . Authchips . | . . . . . . . . . . . . . . . Time . | . . . . . . . . . . . . . . . Total Robot Build Rating . | . . . . . . . . . . . . . . . Part Schematics Acquired . | . . . . . . . . . . . . . . . Parts Built 2 | . . . . . . . . . . 2 . . . . Authchips . | . . . . . . . . . . . . . . . Time 64 | . . . . . . . . . . 64 . . . . Total Part Build Rating 16 | . . . . . . . . . . 16 . . . . Parts Repaired 1 | . . . . . . . . . 1 . . . . . Time 80 | . . . . . . . . . 80 . . . . . Parts Recycled . | . . . . . . . . . . . . . . . Recycled Matter . | . . . . . . . . . . . . . . . Retrieved Matter . | . . . . . . . . . . . . . . . Retrieved Components 9 | . 4 . . . . . 2 . . 1 . . . 2 Parts Scanalyzed . | . . . . . . . . . . . . . . . Part Schematics Acquired . | . . . . . . . . . . . . . . . Parts Damaged . | . . . . . . . . . . . . . . . Bothacking | -11 -10 -10 -10 -9 -8 -7 -6 -5 -5 -4 -3 -2 -1 -1 ------------ Run | Yrd Mat Min Exi Min Mat Fac Fac Fac Ext Fac Res Res Acc Com Used RIF Installer . | . . . . . . . . . . . . . . . Robots Hacked 1 | . . . . . . . . . . . . . . 1 Non-combat . | . . . . . . . . . . . . . . . Combat 1 | . . . . . . . . . . . . . . 1 Robot Hacks Applied 1 | . . . . . . . . . . . . . . 1 parse_system 1 | . . . . . . . . . . . . . . 1 Relay Couplers Released . | . . . . . . . . . . . . . . . Fabnet Peak Effective % . | . . . . . . . . . . . . . . . Robots Rewired 9 | . . . . . . . . . 8 1 . . . . Allies Hacked 1 | . . . . . . . . . . . 1 . . . Hacks Repelled . | . . . . . . . . . . . . . . . Allies | -11 -10 -10 -10 -9 -8 -7 -6 -5 -5 -4 -3 -2 -1 -1 -------- Run | Yrd Mat Min Exi Min Mat Fac Fac Fac Ext Fac Res Res Acc Com Total Allies 17 | . . . . . . . . . 14 1 1 1 . . Largest Group 8 | . . . . . . . . . 7 8 1 1 . . Highest-Rated Group 220 | . . . . . . . . . 164 220 26 45 . . Highest-Rated Ally 56 | . . . . . . . . . 39 56 26 45 . . Total Orders . | . . . . . . . . . . . . . . . Ally Attacks 61 | . . . . . . . . . 29 32 . . . . Total Damage 1885 | . . . . . . . . . 640 1245 . . . . Kills 12 | . . . . . . . . . 2 10 . . . . Allies Corrupted . | . . . . . . . . . . . . . . . Allies Melted . | . . . . . . . . . . . . . . . Intel | -11 -10 -10 -10 -9 -8 -7 -6 -5 -5 -4 -3 -2 -1 -1 ------- Run | Yrd Mat Min Exi Min Mat Fac Fac Fac Ext Fac Res Res Acc Com Robot Analysis Total . | . . . . . . . . . . . . . . . Derelict Logs Recovered 2 | . . 2 . . . . . . . . . . . . Drone Launches . | . . . . . . . . . . . . . . . Drone Recoveries . | . . . . . . . . . . . . . . . Exploration | -11 -10 -10 -10 -9 -8 -7 -6 -5 -5 -4 -3 -2 -1 -1 ------------- Run | Yrd Mat Min Exi Min Mat Fac Fac Fac Ext Fac Res Res Acc Com Turns Passed 11629 | 117 1252 635 636 122 1503 293 235 148 1038 1123 1038 1420 891 1178 Spaces Moved 13725 | 54 779 390 443 88 491 541 421 186 1103 1679 1753 2936 1999 862 Core 16 | 5 . . . . . . . . . . . . . 11 Treads 321 | 49 58 . . . 211 . . . . . . . . 3 Legs 109 | . . . 2 . . . . . . . . . . 107 Wheels 1780 | . 721 390 441 88 140 . . . . . . . . . Hover 681 | . . . . . . . . . . . . . 1 680 Flight 10818 | . . . . . 140 541 421 186 1103 1679 1753 2936 1998 61 Fastest Speed 25 | 50 95 140 140 140 50 50 39 35 35 31 28 26 26 25 Average Speed 54 | 149 128 140 140 140 174 50 39 35 35 33 29 26 28 103 Slowest Speed 400 | 160 200 140 250 140 236 50 50 35 50 108 31 26 122 400 Overloaded Moves . | . . . . . . . . . . . . . . . Propulsion Burnouts . | . . . . . . . . . . . . . . . Robots Hopped 26 | . . . . . 1 . . 1 3 7 3 8 2 1 Cave-ins Triggered . | . . . . . . . . . . . . . . . Exploration Rate (%) 42 | 4 95 81 79 21 41 17 11 5 84 39 38 48 37 31 Regions Visited 14 Branch Regions 5 Pre-discovered Areas . | . . . . . . . . . . . . . . . Known Exits Taken 2 | . 1 . . . . . . . . . . 1 . . Unknown Exits Taken 12 | 1 . 1 1 1 1 1 1 1 1 1 1 . 1 . Scrap Searched 3 | . . 3 . . . . . . . . . . . . Spaces Dug 164 | . 1 . . . 2 . 3 . . 34 24 53 42 5 Terrain Destroyed 521 | . 1 . . . 4 . 3 . 7 89 30 239 55 93 Melee 85 | . . . . . . . . . . 1 19 39 21 5 Projectile 137 | . 1 . . . 4 . 3 . 7 49 11 25 34 3 AOE 299 | . . . . . . . . . . 39 . 175 . 85 Terrain Rammed . | . . . . . . . . . . . . . . . Walls Destroyed . | . . . . . . . . . . . . . . . Machines Disabled . | . . . . . . . . . . . . . . . Actions | -11 -10 -10 -10 -9 -8 -7 -6 -5 -5 -4 -3 -2 -1 -1 --------- Run | Yrd Mat Min Exi Min Mat Fac Fac Fac Ext Fac Res Res Acc Com Total 17023 | 76 916 463 458 87 933 565 474 244 1703 2134 2215 3464 2249 1042 Wait 2103 | . 41 54 3 . 254 4 19 35 498 297 356 378 130 34 Move 13659 | 53 778 389 442 87 488 540 420 183 1096 1664 1746 2919 1994 860 Hop 26 | . . . . . 1 . . 1 3 7 3 8 2 1 Pick Up 125 | 5 12 3 4 . 12 9 9 4 3 24 16 12 4 8 Fast Attach 85 | 7 . . 1 . 8 2 . . 2 7 8 7 2 41 Attach 51 | 1 2 . 2 . 12 1 3 3 . 5 7 4 3 8 Detach 15 | 1 . . 1 . 3 . . 1 1 1 . 2 3 2 Swap 97 | 1 7 1 2 . 19 1 4 2 3 14 8 19 2 14 Drop 145 | 1 8 . 3 . 22 8 8 3 4 36 22 12 6 12 Fire 458 | 7 68 16 . . 112 . 11 3 25 74 14 51 44 33 Melee 129 | . . . . . . . . . . 1 35 42 23 28 Ram 2 | . . . . . . . . . . 1 . . . 1 Kick . | . . . . . . . . . . . . . . . Crush 2 | . . . . . 2 . . . . . . . . . Escape Stasis 67 | . . . . . . . . . 21 . . 10 36 . Rewire 49 | . . . . . . . . . 46 3 . . . . Trap . | . . . . . . . . . . . . . . . Miscellaneous 10 | . . . . . . . . 9 1 . . . . . Route ------- -11/Scrapyard -10/Materials (discovered 6 exits: [*Mat x3] / *Min x2 / [*Sub]) -10/Mines (discovered 2 exits: [*Mat] / *Exi) -10/Exiles -9/Mines -8/Materials -7/Factory -6/Factory -5/Factory -5/Extension (discovered 2 exits: *Fac / [*Cet]) -4/Factory (discovered 4 exits: *Res / Upp x2 / Arm) -3/Research (discovered 3 exits: *Res / Tes x2) -2/Research (discovered 4 exits: *Acc x3 / [*Qua]) -1/Access -1/Command (discovered 2 exits: Sur x2) History --------- Turn | Location | Event 5 | -11/Scrapyard | Discovered new exit (range 15) 118 | -11/Scrapyard | Entered Materials 266 | -10/Materials | Discovered new exit (range 16) 305 | -10/Materials | Build established: Mutant 637 | -10/Materials | Discovered new exit (range 9) 776 | -10/Materials | Discovered new exit (range 5) 981 | -10/Materials | Core integrity fell below 50% 1020 | -10/Materials | Discovered new exit (range 12) 1027 | -10/Materials | Discovered new exit (range 16) 1115 | -10/Materials | Discovered new exit (range 10) 1349 | -10/Materials | Identified exit to Mines 1370 | -10/Materials | Entered Mines 1425 | -10/Mines | Learned Materials terminal intel 1619 | -10/Mines | Discovered new exit (range 6) 1671 | -10/Mines | Received a Rocket Launcher from a helpful Derelict 1778 | -10/Mines | Learned Materials stockpile data 1998 | -10/Mines | Deemed a non-threat by the Exiles lab entrance 1999 | -10/Mines | Discovered new exit (range 5) 2005 | -10/Mines | Entered Exiles 2039 | -10/Exiles | Met 8R-AWN 2064 | -10/Exiles | Met EX-HEX 2120 | -10/Exiles | Met EX-DEC 2200 | -10/Exiles | Met EX-BIN 2216 | -10/Exiles | Aligned with FarCom system 2217 | -10/Exiles | Given EX-Vault access code 2286 | -10/Exiles | Opened EX-Vault 2294 | -10/Exiles | Found Prototype Device 2295 | -10/Exiles | Identified Chronowheel 2295 | -10/Exiles | Activated Chronowheel 2300 | -10/Exiles | Found Prototype Leg 2301 | -10/Exiles | Identified Potential Leg 2305 | -10/Exiles | Found Potential Leg 2314 | -10/Exiles | Found Flying Fortress v7 2346 | -10/Exiles | Warned to stay clear of 0b10 Research branches 2452 | -10/Exiles | Visited The Gauntlet 2626 | -10/Exiles | Discovered new exit (range 10) 2641 | -10/Exiles | Left Exiles lab with Flying Fortress v7 2641 | -10/Exiles | Entered Mines 2673 | -9/Mines | Met a Derelict bent on vengeance 2693 | -9/Mines | Discovered new exit (range 14) 2763 | -9/Mines | Entered Materials 2763 | -8/Materials | Evolved 4 slots: Propulsion x2, Utility x2 2765 | -8/Materials | Loaded intel: 12 terminal locations 3351 | -8/Materials | Build established: Scavenger-Mutant 4085 | -8/Materials | Garrison activated, responded to threat 4144 | -8/Materials | Destroyed 7 combat bots 4193 | -8/Materials | Core integrity fell below 50% 4225 | -8/Materials | Lost 10 parts (1p4n1u4w) 4251 | -8/Materials | Discovered new exit (range 11) 4266 | -8/Materials | Entered Factory 4266 | -7/Factory | Evolved 2 slots: Propulsion x1, Utility x1 4550 | -7/Factory | Discovered new exit (range 13) 4559 | -7/Factory | Entered another Factory area 4559 | -6/Factory | Evolved 2 slots: Utility x2 4755 | -6/Factory | Discovered new exit (range 18) 4794 | -6/Factory | Entered another Factory area 4794 | -5/Factory | Evolved 2 slots: Propulsion x1, Utility x1 4938 | -5/Factory | Discovered new exit (range 5) 4942 | -5/Factory | Entered Extension 4944 | -5/Extension | Build established: Scout 4966 | -5/Extension | Spotted B-75 Beast 5005 | -5/Extension | Rescued a captive Derelict 5014 | -5/Extension | Rescued a captive Derelict 5132 | -5/Extension | Rescued a captive Derelict 5615 | -5/Extension | Spotted B-75 Beast 5620 | -5/Extension | Extracted ID and sensor layout for unrecognized location from A7's data core 5630 | -5/Extension | Rescued a captive Derelict 5635 | -5/Extension | Rescued a captive Derelict 5635 | -5/Extension | Rescued a captive Derelict 5917 | -5/Extension | Repaired Cld. Plasma Cannon 5924 | -5/Extension | Rescued a captive Derelict 5934 | -5/Extension | Discovered new exit (range 10) 5935 | -5/Extension | Discovered new exit (range 6) 5980 | -5/Extension | Entered Factory 5980 | -4/Factory | Accompanied by 7 allies 5980 | -4/Factory | Evolved 2 slots: Power x1, Propulsion x1 6025 | -4/Factory | Identified exit to DSF 6114 | -4/Factory | Build established: Commander-Scout 6527 | -4/Factory | Fabricated Lgt. Particle Reactor (x2) 6590 | -4/Factory | Build established: Hacker-Scout 6864 | -4/Factory | Found Prototype Slashing Weapon 6997 | -4/Factory | Identified Molecular Scythe 7084 | -4/Factory | Discovered new exit (range 17) 7099 | -4/Factory | Identified exit to Upper Caves 7099 | -4/Factory | Identified exit to Armory 7103 | -4/Factory | Entered Research 7103 | -3/Research | Evolved 2 slots: Propulsion x1, Utility x1 7329 | -3/Research | Found Prototype Device 7364 | -3/Research | Found Fusion Bomb Launcher 7391 | -3/Research | Identified Exp. Sensor Array 7395 | -3/Research | Found Prototype Launcher 7408 | -3/Research | Found Prototype Device 7408 | -3/Research | Identified Exp. ECM Suite 7522 | -3/Research | Central database locked down 7533 | -3/Research | Identified Adv. Micro-nuke Launcher 7540 | -3/Research | Found Adv. Micro-nuke Launcher 7562 | -3/Research | Build established: Hacker-Ninja 7897 | -3/Research | Identified exit to Testing 8127 | -3/Research | Discovered new exit (range 8) 8141 | -3/Research | Entered another Research area 8141 | -2/Research | Evolved 2 slots: Propulsion x1, Utility x1 8380 | -2/Research | Discovered new exit (range 21) 8673 | -2/Research | Build established: Hacker-Sprinter 8959 | -2/Research | Spotted B-90 Cyclops 9298 | -2/Research | Garrison activated, responded to threat 9400 | -2/Research | Central database locked down 9446 | -2/Research | Identified exit to Access 9561 | -2/Research | Entered Access 9561 | -1/Access | Evolved 2 slots: Propulsion x1, Utility x1 9755 | -1/Access | Spotted B-99 Colossus 9811 | -1/Access | First assault squad dispatched 9862 | -1/Access | Spotted B-99 Colossus 9898 | -1/Access | Found Prototype Hackware 10091 | -1/Access | Search patrols dispatched 10358 | -1/Access | Search patrols dispatched 10449 | -1/Access | Discovered new exit (range 7) 10452 | -1/Access | Entered Command 10452 | -1/Command | Identified Exp. System Shield 10473 | -1/Command | Lost 5 parts (1p3n1u) 10493 | -1/Command | Found Prototype Device 10493 | -1/Command | Identified Exp. Actuator Array 10670 | -1/Command | Disengaged cave seal 10752 | -1/Command | Lost 6 parts (1p2n2u1w) 10757 | -1/Command | Identified exit to Surface 10854 | -1/Command | Build established: Wizard-Mutant 10971 | -1/Command | Phase Generator disabled 10993 | -1/Command | Spotted M Guard 10993 | -1/Command | Spotted M Guard 10993 | -1/Command | Spotted Combat Programmer 11005 | -1/Command | Lost 6 parts (1p1n3u1w) 11114 | -1/Command | Lost 8 parts (2p1n2u3w) 11175 | -1/Command | Spotted Combat Programmer 11261 | -1/Command | Build established: Hacker-Mutant 11293 | -1/Command | Spotted B-99 Colossus 11616 | -1/Command | Core integrity fell below 50% 11624 | -1/Command | Core integrity fell below 20% 11630 | -1/Command | Destroyed by S-43 Plague with Heavy Machine Gun Last Messages --------------- 11623_ KE Penetrator severed. 11624_ Critical hit (Burn: +37). 11624_ Penetrated by Slug. 11625_ S-43 Plague destroyed. 11625_ Acquired KE Penetrator. 11626_ The unstable cave ceiling collapses. 11626_ Slug penetrates S-43 Plague. 11626_ S-43 Plague destroyed. 11626_ Slug penetrates Wall. 11626_ C-57 Dissector destroyed. 11627_ Slug penetrates Earth. 11627_ Slug penetrates C-57 Dissector. 11627_ C-57 Dissector destroyed. 11627_ KE Penetrator destroyed. 11627_ Acquired Adv. Surge Thruster. [Achievement: Can't Catch Me] 11629_ Critical hit (Burn: +37). 11629_ Slug penetrates Wall. 11630_ Adv. Surge Thruster destroyed. 11630_ Slammed into S-43 Plague. Map ----- +----------------------------------------------------+ | | | ?????????????????????????????????????????????????? | | ?????????????????????????????????????????????????? | | ?????????????????????????????????????????????????? | | ?????????????????????????????????????????????????? | | ????????????????????????????????##############???? | | ????????????????????????????????# #???? | | ????????????????????????????????# #???? | | ????????????????????????????????# !!! #???? | | ????????????????????????????????# !! #???? | | ????????????????????????????????# ! ##### | | ????????????????????????????????# ## | | ????????????????????????????????# ## | | ????????????????????????????????# ## | | ??????????????????#####?????????# ## | | ??????????????????# ?????????# ## | | ??????????????????# ?????????# ! ## | | ??????????????????# ?????????# ## | | ??????????????????? ?????????####+########## | | ??????????????????? ???????????# | | ??????????????????? ???????????# | | ???????????????????# #???????????# ####### | | ????????????????h??# #???????????# #? # ##+# | | ????????????????h??# #?###???????# #? # # | | ??????????????#????# ###s#######?# # # # | | ??????????????#hh??# ##!@# # #?# # # # | | ??????????????#hh### # s sg# ! #?# + # # | | ?????????#????#hh# hs#hssg%#* =#?# # !# # | | ???## ### ### h# # h*=gh#### #### # # # | | ???# hhhhghgs*g #?##### # | | ???# g g g gggh #?????# # | | ???# g g gh sgs=g c #?????# # | | ???# gg gg ggg%g #?????# # | | ???## ### ## g ggg#gggg### #"## ####### #### | | ?????????#???# gg gs ## ### | | ?????????????## g# #gg ### ## w #?# " | | ??????????????# g### ##?#### #?# " | | ??????????????#?g??# g ?????#####?# | | ????????????????g??# #???????????#s | | ????????????????g??# #???????????# | | ???????????????????# #???????????# | | ??????????????????? ???????????# | | ??????????????????? ???????????# | | ??????????????????# ?????????###/### | | ??????????????????# ?????????# # "" | | ??????????????????# ?????????# # """" | | ??????????????????# #????????# !# """" | | ??????????????????## ###????????# |# "" | | ???????????????????# ???????????# # | | ???????????????????# ???????????# !%+ | +----------------------------------------------------+ Best States ------------- Heat Dissipation 142 Coolant Potential 100 Energy Generation 57 Energy Capacity 870 Matter Stores 300 Matter Capacity 300 Sight Range 22 Terrain Scan Density 10 ECM Strength 3 Jamming Range 16 Cloak Strength 2 Power Amplification 30 Additional Mass Support 9 Armor Coverage 600 Phase Shifting 15 Evasion (%) 91 Targeting Accuracy 8 Target Analysis 8 Recoil Reduction 4 Offensive Hacking 24 Defensive Hacking 44 Item Schematics ----------------- None Robot Schematics ------------------ None Fabricated ------------ Lgt. Particle Reactor | x2 | -4/Factory | Preloaded Alien Tech Used ----------------- None Achievements -------------- Can't Catch Me Dangerous Findings Deadly Force Denied? Dodgeball, But With Guns Origins Rockin' Loadout Challenges ------------ None Game ------ Seed TrapInsulatedPick Manual? 0 Play Time 05:24:04 Cumulative 49.2 hours Start 2024.04.21 @ 18:36:23 End 2024.04.23 @ 16:26:45 Sessions 5 Manual Loads 0 Difficulty Rogue Special Mode None Game No. 29 Rogue 29 Adventurer 0 Explorer 0 Win Type - Total 0 Types 0/0/0/0/0/0/0/0/0 Lore% 35 Gallery% 41 Achievement% 32 Wizard Run 0 Options --------- Layout 1 ASCII 0 Keyboard 0 Movement Mouse Keybinds 0 Fullscreen 1 Font 24/Smallcaps Map View 50x35 Zoom Use 0% Tactical HUD 1 Map Filters NONE Filters NONE Steam 1 RUN: 1f34fc38-2447-4ddd-a503-621e65661de4